fUSD/lending_fUSD_20251030
["ID","MTS","AMOUNT","RATE_DAILY","PERIOD"]
[392719004,1761855034073,-155.0,0.00032877,30]
[392719005,1761855034082,-155.0,0.00032877,30]
[392719006,1761855034093,-155.0,0.00032877,30]
[392719007,1761855034102,-153.0,0.00032877,30]
[392719008,1761855034111,-153.0,0.00032877,30]
[392719009,1761855034121,-153.0,0.00032877,30]
[392719010,1761855034130,-153.0,0.00032877,30]
[392719011,1761855034139,-153.0,0.00032877,30]
[392719012,1761855034149,-153.0,0.00032877,30]
[392719013,1761855034158,-153.0,0.00032877,30]
[392719014,1761855034167,-153.0,0.00032877,30]
[392719015,1761855034179,-153.0,0.00032877,30]
[392719016,1761855034188,-153.0,0.00032877,30]
[392719017,1761855034197,-153.0,0.00032877,30]
[392719018,1761855034206,-153.0,0.00032877,30]
[392719019,1761855034215,-244.0,0.00032877,30]
[392719020,1761855034225,-244.0,0.00032877,30]
[392719021,1761855034234,-244.0,0.00032877,30]
[392719022,1761855034243,-244.0,0.00032877,30]
[392719023,1761855034253,-244.0,0.00032877,30]
[392719024,1761855034262,-244.0,0.00032877,30]
[392719025,1761855034271,-244.0,0.00032877,30]
[392719026,1761855034280,-244.0,0.00032877,30]
[392719027,1761855034290,-244.0,0.00032877,30]
[392719028,1761855034299,-244.0,0.00032877,30]
[392719029,1761855034309,-244.0,0.00032877,30]
[392719030,1761855034318,-244.0,0.00032877,30]
[392719031,1761855034328,-244.0,0.00032877,30]
[392719032,1761855034341,-244.0,0.00032877,30]
[392719033,1761855034350,-153.0,0.00032877,30]
[392719034,1761855034360,-153.0,0.00032877,30]
[392719035,1761855034370,-153.0,0.00032877,30]
[392719036,1761855034379,-153.0,0.00032877,30]
[392719037,1761855034388,-153.0,0.00032877,30]
[392719038,1761855034399,-153.0,0.00032877,30]
[392719039,1761855034408,-153.0,0.00032877,30]
[392719040,1761855034418,-153.0,0.00032877,30]
[392719041,1761855034427,-153.0,0.00032877,30]
[392719042,1761855034437,-153.0,0.00032877,30]
[392719043,1761855034446,-153.0,0.00032877,30]
[392719044,1761855034456,-249.0,0.00032877,30]
[392719045,1761855034465,-249.0,0.00032877,30]
[392719046,1761855034475,-249.0,0.00032877,30]
[392719047,1761855034484,-249.0,0.00032877,30]
[392719048,1761855034494,-249.0,0.00032877,30]
[392719049,1761855034504,-249.0,0.00032877,30]
[392719050,1761855034514,-249.0,0.00032877,30]
[392719051,1761855034523,-249.0,0.00032877,30]
[392719052,1761855034533,-249.0,0.00032877,30]
[392719053,1761855034543,-249.0,0.00032877,30]
[392719054,1761855034552,-249.0,0.00032877,30]
[392719055,1761855034562,-249.0,0.00032877,30]
[392719056,1761855034571,-249.0,0.00032877,30]
[392719057,1761855034580,-249.0,0.00032877,30]
[392719058,1761855034591,-153.0,0.00032877,30]
[392719059,1761855034600,-153.0,0.00032877,30]
[392719060,1761855034609,-153.0,0.00032877,30]
[392719061,1761855034618,-153.0,0.00032877,30]
[392719062,1761855034627,-153.0,0.00032877,30]
[392719063,1761855034636,-153.0,0.00032877,30]
[392719064,1761855034645,-153.0,0.00032877,30]
[392719065,1761855034654,-153.0,0.00032877,30]
[392719066,1761855034663,-153.0,0.00032877,30]
[392719067,1761855034672,-153.0,0.00032877,30]
[392719068,1761855034681,-153.0,0.00032877,30]
[392719069,1761855034691,-248.0,0.00032877,30]
[392719070,1761855034700,-248.0,0.00032877,30]
[392719071,1761855034710,-248.0,0.00032877,30]
[392719072,1761855034719,-248.0,0.00032877,30]
[392719073,1761855034729,-248.0,0.00032877,30]
[392719074,1761855034738,-248.0,0.00032877,30]
[392719075,1761855034747,-248.0,0.00032877,30]
[392719076,1761855034756,-248.0,0.00032877,30]
[392719077,1761855034766,-248.0,0.00032877,30]
[392719078,1761855034780,-248.0,0.00032877,30]
[392719079,1761855034789,-248.0,0.00032877,30]
[392719080,1761855034798,-248.0,0.00032877,30]
[392719081,1761855034807,-248.0,0.00032877,30]
[392719082,1761855034819,-248.0,0.00032877,30]
[392719083,1761855034829,-153.0,0.00032877,30]
[392719084,1761855034839,-153.0,0.00032877,30]
[392719085,1761855034850,-153.0,0.00032877,30]
[392719086,1761855034859,-153.0,0.00032877,30]
[392719087,1761855034868,-153.0,0.00032877,30]
[392719088,1761855034878,-153.0,0.00032877,30]
[392719089,1761855034887,-153.0,0.00032877,30]
[392719090,1761855034897,-153.0,0.00032877,30]
[392719091,1761855034907,-153.0,0.00032877,30]
[392719092,1761855034916,-153.0,0.00032877,30]
[392719093,1761855034925,-153.0,0.00032877,30]
[392719094,1761855034935,-153.0,0.00032877,30]
[392719095,1761855034944,-238.0,0.00032877,30]
[392719096,1761855034962,-238.0,0.00032877,30]
[392719097,1761855034973,-238.0,0.00032877,30]
[392719098,1761855034983,-238.0,0.00032877,30]
[392719099,1761855034992,-238.0,0.00032877,30]
[392719100,1761855035002,-238.0,0.00032877,30]
[392719101,1761855035012,-238.0,0.00032877,30]
[392719102,1761855035022,-238.0,0.00032877,30]
[392719103,1761855035032,-238.0,0.00032877,30]
[392719104,1761855035042,-238.0,0.00032877,30]
[392719105,1761855035052,-238.0,0.00032877,30]
[392719106,1761855035061,-238.0,0.00032877,30]
[392719107,1761855035071,-238.0,0.00032877,30]
[392719108,1761855035081,-238.0,0.00032877,30]
[392719109,1761855035091,-153.0,0.00032877,30]
[392719110,1761855035100,-153.0,0.00032877,30]
[392719111,1761855035110,-153.0,0.00032877,30]
[392719112,1761855035119,-153.0,0.00032877,30]
[392719113,1761855035129,-153.0,0.00032877,30]
[392719114,1761855035138,-153.0,0.00032877,30]
[392719115,1761855035147,-153.0,0.00032877,30]
[392719116,1761855035157,-153.0,0.00032877,30]
[392719117,1761855035167,-153.0,0.00032877,30]
[392719118,1761855035177,-153.0,0.00032877,30]
[392719119,1761855035187,-153.0,0.00032877,30]
[392719120,1761855035196,-153.0,0.00032877,30]
[392719121,1761855035206,-153.0,0.00032877,30]
[392719122,1761855035216,-153.0,0.00032877,30]
[392719123,1761855035225,-153.0,0.00032877,30]
[392719124,1761855035235,-234.0,0.00032877,30]
[392719125,1761855035244,-234.0,0.00032877,30]
[392719126,1761855035253,-153.0,0.00032877,30]
[392719127,1761855035262,-153.0,0.00032877,30]
[392719128,1761855035271,-153.0,0.00032877,30]
[392719129,1761855035280,-153.0,0.00032877,30]
[392719130,1761855035290,-153.0,0.00032877,30]
[392719131,1761855035299,-153.0,0.00032877,30]
[392719132,1761855035310,-153.0,0.00032877,30]
[392719133,1761855035319,-153.0,0.00032877,30]
[392719134,1761855035328,-153.0,0.00032877,30]
[392719135,1761855035339,-153.0,0.00032877,30]
[392719136,1761855035348,-153.0,0.00032877,30]
[392719137,1761855035358,-153.0,0.00032877,30]
[392719138,1761855035367,-153.0,0.00032877,30]
[392719139,1761855035377,-153.0,0.00032877,30]
[392719140,1761855035386,-153.0,0.00032877,30]
[392719141,1761855035396,-341.68,0.00032896,120]
[392719142,1761855035407,-168.0,0.00032958,2]
[392719143,1761855035416,-402.5052,0.00032972,2]
[392719144,1761855035426,-150.0,0.00033,5]
[392719145,1761855035437,-545.824406,0.00033,14]
[392719146,1761855035448,-500.0,0.00033014,60]
[392719147,1761855035458,-500.0,0.00033014,60]
[392719148,1761855035468,-150.0,0.00033014,60]
[392719149,1761855035478,-150.0,0.00033014,60]
[392719150,1761855035488,-3634.74,0.00033072,2]
[392719151,1761855035498,-783.44010636,0.00033072,2]
[392719152,1761855035507,-500.0,0.00033151,60]
[392719153,1761855035517,-500.0,0.00033151,60]
[392719154,1761855035526,-168.0,0.0003316,2]
[392719155,1761855035536,-465.93,0.00033165,2]
[392719156,1761855035545,-150.54680594,0.00033165,2]
[392719157,1761855035556,-152.0,0.00033197,4]
[392719158,1761855035567,-2102.6314,0.00033219,2]
[392719159,1761855035577,-4315.36,0.00033276,2]
[392719160,1761855035586,-500.0,0.00033288,60]
[392719161,1761855035597,-500.0,0.00033288,60]
[392719162,1761855035607,-42609.66268943,0.00033319,2]
[392719163,1761855035617,-2122.12338023,0.00033319,2]
[392719164,1761855035642,-472.28209473,0.00029299,2]
[392719165,1761855037896,-150.0,0.00028022,3]
[392719166,1761855037907,-27.71790527,0.00029299,2]
[392719167,1761855037916,-241.84881029,0.00029299,2]
[392719168,1761855038003,-258.15118971,0.00029299,2]
[392719169,1761855038013,-233.88366246,0.00029299,2]
[392719170,1761855038023,-300.0,0.00030262,3]
[392719171,1761855038032,-150.0,0.00031708,3]
[392719172,1761855038041,-200.0,0.00033014,60]
[392719173,1761855038051,-500.0,0.00033014,60]
[392719174,1761855038061,-500.0,0.00033151,60]
[392719175,1761855038070,-500.0,0.00033288,60]
[392719176,1761855038079,-10753.8973886,0.00033319,2]
[392719177,1761855038110,-467.88657865,0.00033319,2]
[392719182,1761855038571,-259.13839387,0.00033319,2]
[392719183,1761855038583,-7518.74425865,0.00033319,2]
[392719184,1761855038594,-3287.0,0.00033365,5]
[392719185,1761855038604,-168.0,0.00033365,2]
[392719186,1761855038615,-500.0,0.00033373,5]
[392719187,1761855038625,-500.0,0.00033373,5]
[392719188,1761855038635,-500.0,0.00033373,5]
[392719189,1761855038644,-500.0,0.00033373,5]
[392719190,1761855038655,-511.82,0.00033406,2]
[392719191,1761855038664,-1000.0,0.00033421,5]
[392719192,1761855038674,-500.0,0.00033425,60]
[392719193,1761855038684,-500.0,0.00033425,60]
[392719194,1761855038693,-150.0,0.00033458,3]
[392719195,1761855038703,-150.0,0.0003346,7]
[392719196,1761855038712,-150.0,0.0003346,7]
[392719197,1761855038722,-150.0,0.0003346,7]
[392719198,1761855038731,-150.0,0.0003346,7]
[392719199,1761855038745,-150.0,0.0003346,7]
[392719200,1761855038755,-150.0,0.0003346,7]
[392719201,1761855038766,-150.0,0.0003346,7]
[392719202,1761855038777,-246.67763414,0.0003346,7]
[392719203,1761855038787,-155.18142051,0.0003346,7]
[392719204,1761855038796,-159.52799234,0.0003346,7]
[392719205,1761855038807,-150.0,0.0003346,7]
[392719206,1761855038817,-155.07678218,0.0003346,7]
[392719207,1761855038826,-168.0,0.00033487,7]
[392719208,1761855038836,-500.0,0.00033562,60]
[392719209,1761855038849,-500.0,0.00033562,60]
[392719210,1761855038859,-966.83,0.00033567,2]
[392719211,1761855038868,-200.0,0.00033617,10]
[392719212,1761855038879,-5000.0,0.00033683,2]
[392719213,1761855038889,-500.0,0.00033699,60]
[392719214,1761855038899,-500.0,0.00033836,60]
[392719215,1761855038908,-159.1,0.00033861,2]
[392719216,1761855038918,-1000.0,0.00033882,2]
[392719217,1761855038928,-1000.0,0.00033921,5]
[392719218,1761855038938,-438.37343532,0.00033921,5]
[392719219,1761855038948,-1000.0,0.00033921,5]
[392719220,1761855038957,-1000.0,0.00033921,5]
[392719221,1761855038968,-300.0,0.00033948,3]
[392719222,1761855038980,-500.0,0.00033973,60]
[392719223,1761855038991,-150.0,0.00034,5]
[392719224,1761855039001,-500.0,0.0003411,60]
[392719225,1761855039011,-1127.0,0.00034172,2]
[392719226,1761855039022,-755.8,0.00034247,2]
[392719227,1761855039033,-300.0,0.00034247,3]
[392719228,1761855039042,-617.53997259,0.00034247,60]
[392719229,1761855039052,-760.4099711,0.00034281,2]
[392719230,1761855039062,-1500.0,0.00034468,5]
[392719231,1761855039072,-1020.55385123,0.00034468,5]
[392719232,1761855039082,-1500.0,0.00034468,5]
[392719233,1761855039094,-1127.0,0.00034524,2]
[392719234,1761855039103,-966.83,0.00034698,2]
[392719235,1761855039113,-150.0,0.000347,7]
[392719236,1761855039122,-300.0,0.0003474,3]
[392719237,1761855039132,-152.0,0.00034801,5]
[392719238,1761855039142,-1127.0,0.00034876,2]
[392719239,1761855039151,-1000.0,0.000349,2]
[392719240,1761855039161,-159.1,0.00034987,2]
[392719241,1761855039171,-150.0,0.00035,5]
[392719242,1761855039181,-4900.12345678,0.00035,2]
[392719243,1761855039191,-200.0,0.00035,2]
[392719244,1761855039201,-1500.0,0.00035016,5]
[392719245,1761855039211,-272.13,0.00035071,2]
[392719246,1761855039222,-2000.0,0.000352,2]
[392719247,1761855039231,-1127.0,0.00035229,2]
[392719248,1761855039242,-538.30486273,0.00035229,2]
[392719249,1761855039252,-1000.0,0.000353,9]
[392719250,1761855039263,-1063.0,0.000353,9]
[392719251,1761855039273,-1000.0,0.000353,8]
[392719252,1761855039283,-1000.0,0.000353,12]
[392719253,1761855039293,-1000.0,0.000353,12]
[392719254,1761855039303,-1000.0,0.000353,12]
[392719255,1761855039313,-1000.0,0.000353,12]
[392719256,1761855039323,-1000.0,0.000353,12]
[392719257,1761855039332,-1000.0,0.000353,12]
[392719258,1761855039344,-1425.0,0.00035307,2]
[392719259,1761855039354,-269.325041,0.00035307,2]
[392719260,1761855039364,-1000.0,0.00035322,2]
[392719261,1761855039374,-1425.0,0.0003533,2]
[392719262,1761855039384,-1425.0,0.00035339,2]
[392719263,1761855039394,-1000.0,0.00035359,2]
[392719264,1761855039403,-1000.0,0.00035372,2]
[392719265,1761855039413,-1425.0,0.00035376,2]
[392719266,1761855039422,-1000.0,0.00035385,2]
[392719267,1761855039432,-1946.35382222,0.0003539,2]
[392719268,1761855039442,-1425.0,0.00035391,2]
[392719269,1761855039452,-736.73,0.00035399,2]
[392719270,1761855039462,-16690.15681686,0.00035407,3]
[392719271,1761855039474,-5875.86493204,0.00035407,3]
[392719272,1761855039483,-249.00271083,0.00035412,2]
[392719273,1761855039495,-1175.99728917,0.00035412,2]
[392719274,1761855039504,-10532.04768628,0.00035417,2]
[392719275,1761855039515,-9439.22795695,0.00035417,2]
[392719276,1761855039525,-3648.21247555,0.00035417,2]
[392719277,1761855039540,-150.0,0.00028522,3]
[392719278,1761855039549,-1090.66059968,0.00035417,2]
[392719279,1761855040048,-300.0,0.00030762,3]
[392719280,1761855040057,-159.00288107,0.00033699,60]
[392719281,1761855040067,-150.0,0.00034382,3]
[392719282,1761855040077,-104.08665543,0.00035417,2]
[392719283,1761855040088,-506.80596331,0.00035417,2]
[392719284,1761855040100,-471.04789993,0.00035417,2]
[392719285,1761855040111,-270.78399987,0.00035417,2]
[392719286,1761855040122,-7107.884863,0.00035417,2]
[392719287,1761855040131,-1000.0,0.00035417,2]
[392719288,1761855040140,-1000.0,0.00035421,2]
[392719289,1761855040150,-199.0,0.00035425,7]
[392719290,1761855040159,-1425.0,0.00035454,2]
[392719291,1761855040168,-1425.0,0.00035455,2]
[392719292,1761855040177,-1425.0,0.00035465,2]
[392719293,1761855040187,-1425.0,0.00035465,2]
[392719294,1761855040195,-1425.0,0.00035466,2]
[392719295,1761855040205,-22566.0217489,0.0003548,3]
[392719296,1761855040214,-163.24,0.0003548,2]
[392719297,1761855040223,-36842.7906,0.0003549,2]
[392719298,1761855040232,-172.8363815,0.00035496,60]
[392719299,1761855040241,-1425.0,0.00035499,2]
[392719300,1761855040251,-16448.64893292,0.000355,2]
[392719301,1761855040262,-687.00000082,0.000355,2]
[392719302,1761855040273,-1719.3985112,0.000355,2]
[392719303,1761855040315,-150.0,0.00031262,3]
[392719304,1761855040325,-2229.64171834,0.000355,2]
[392719305,1761855040336,-9918.53454759,0.000355,2]
[392719306,1761855040346,-2500.0,0.000355,18]
[392719307,1761855040355,-300.0,0.00035507,3]
[392719308,1761855040365,-680.38147136,0.00035512,2]
[392719309,1761855040374,-1000.0,0.00035519,2]
[392719310,1761855040384,-1425.0,0.0003552,2]
[392719311,1761855040393,-1425.0,0.00035523,2]
[392719312,1761855040403,-22566.0217489,0.00035525,3]
[392719313,1761855040412,-22566.0217489,0.00035526,3]
[392719314,1761855040421,-47.30363344,0.00035526,2]
[392719315,1761855040432,-1377.69636656,0.00035526,2]
[392719316,1761855040441,-174.20987634,0.00035535,2]
[392719338,1761855043011,-1250.79012366,0.00035535,2]
[392719339,1761855043020,-4095.70987634,0.00035536,2]
[392719340,1761855043032,-368.8,0.00035536,2]
[392719341,1761855043119,151.0,0.00016253,2]
[392719342,1761855043171,-42483.99862806,0.00035536,2]
[392719343,1761855043181,-1425.0,0.00035569,2]
[392719344,1761855043191,-300.0,0.0003557,2]
[392719345,1761855043201,-400.0,0.0003557,2]
[392719346,1761855043210,-1425.0,0.00035572,2]
[392719347,1761855043221,-512.15015859,0.00035573,5]
[392719348,1761855043231,-500.0,0.00035573,5]
[392719349,1761855043241,-500.0,0.00035573,5]
[392719350,1761855043251,-1946.35382218,0.00035578,2]
[392719351,1761855043260,-1000.0,0.00035579,2]
[392719352,1761855043270,-500.0,0.0003558,120]
[392719353,1761855043279,-500.0,0.0003558,120]
[392719354,1761855043289,-17048.90521985,0.0003558,3]
[392719363,1761855046116,-828.93728644,0.0003558,3]
[392719364,1761855046170,-27254.20099151,0.0003558,3]
[392719365,1761855046180,-1127.0,0.00035581,2]
[392719366,1761855046189,-1000.0,0.00035582,2]
[392719367,1761855046198,-21543.31377001,0.0003559,8]
[392719368,1761855046225,-510.27514325,0.0003559,8]
[392719385,1761855907815,7534.07,0.00015,2]
[392719386,1761855907850,2300000.0,0.00015,2]
[392719390,1761855917315,416.41,0.00013699,2]
[392719392,1761856012235,2351.17604294,0.000162,5]
[392719403,1761856084472,2000.0,0.0002739,120]
[392719447,1761856164122,-300.0,0.00014998,2]
[392719448,1761856164149,-284.5900681,0.00014999,2]
[392719449,1761856164174,-500.0,0.00014999,2]
[392719450,1761856164197,-500.0,0.00014999,2]
[392719451,1761856164220,-500.0,0.00014999,2]
[392719452,1761856164242,-500.0,0.00014999,2]
[392719453,1761856164265,-118.3596919,0.00014999,2]
[392719465,1761856232134,-347.0088149,0.00014999,2]
[392719475,1761856232555,-34.6314932,0.00014999,2]
[392719477,1761856232565,-596.55609649,0.00014999,2]
[392719479,1761856232575,-500.0,0.00014999,2]
[392719481,1761856232584,-300.0,0.00014999,2]
[392719484,1761856232594,-1200.0,0.00014999,2]
[392719486,1761856232604,-300.0,0.00014999,2]
[392719487,1761856232613,-150.0,0.00014999,2]
[392719490,1761856232630,-17120.79735601,0.00015,2]
[392719492,1761856232643,-186592.35097246,0.00015,2]
[392719494,1761856232654,-711.25556911,0.00015,2]
[392719495,1761856232666,-3936.93933547,0.00015,2]
[392719496,1761856232677,-542.14500003,0.00015,2]
[392719497,1761856232689,-724.83722,0.00015,2]
[392719498,1761856232700,-293.410002,0.00015,2]
[392719504,1761856238051,-3070.00001,0.00015,2]
[392719508,1761856238109,-730.32098496,0.00015,2]
[392719510,1761856238122,-14381.78100031,0.00015,2]
[392719515,1761856238170,-7453.44273669,0.00015,2]
[392719516,1761856238182,-6701.51366915,0.00015,2]
[392719519,1761856238286,-4572.92941166,0.00015,2]
[392719574,1761856240137,-2153.85441291,0.00015,2]
[392719575,1761856240198,-11967.33201315,0.00015,2]
[392719576,1761856240210,-3171.97145895,0.00015,2]
[392719577,1761856240221,-568.32776,0.00015,2]
[392719578,1761856240232,-2144.2,0.00015,2]
[392719579,1761856240263,-3667.7078947,0.00015,2]
[392719580,1761856240378,-2230.00001,0.00015,2]
[392719581,1761856240389,-949.8822578,0.00015,2]
[392719582,1761856240442,-267457.44132645,0.00015,2]
[392719583,1761856240452,-163.65983101,0.00015,2]
[392719584,1761856240461,-3270.89620387,0.000151,2]
[392719585,1761856240471,-1557.08305778,0.000152,2]
[392719586,1761856240480,-1517.64,0.000153,2]
[392719587,1761856240490,-255.0,0.00016124,2]
[392719588,1761856240500,-420.0,0.00016416,2]
[392719589,1761856240512,-420.0,0.00016416,2]
[392719590,1761856240522,-1680.0,0.00016499,2]
[392719591,1761856240531,-433.0,0.00017339,2]
[392719592,1761856240540,-3270.89620383,0.00017542,2]
[392719593,1761856240551,-1557.08305774,0.00017631,2]
[392719594,1761856240561,-587.0,0.00017966,2]
[392719595,1761856240570,-56858.26696779,0.00018,2]
[392719596,1761856240579,-179.92,0.00018048,2]
[392719597,1761856240589,-1761.61765184,0.000181,2]
[392719598,1761856240598,-2351.0,0.00018149,2]
[392719600,1761856240607,-736.0,0.00018629,2]
[392719601,1761856240617,-163.65983096,0.0001868,2]
[392719602,1761856240627,-1803.18524374,0.00019,5]
[392719603,1761856240636,-5116.82636747,0.00019,2]
[392719604,1761856240646,-1027.81952684,0.000194,14]
[392719605,1761856240655,-823.0,0.00019663,2]
[392719606,1761856240665,-4871.86477857,0.000199,3]
[392719607,1761856240675,-161.7174598,0.000199,2]
[392719608,1761856240684,-233289.71542264,0.0001995,15]
[392719609,1761856240694,-1612.0,0.00019964,2]
[392719610,1761856240703,-3270.89620383,0.00019985,2]
[392719611,1761856240714,-4653.60754803,0.0002,2]
[392719612,1761856240728,-201336.87893725,0.0002,5]
[392719613,1761856240737,-8300.0,0.0002,4]
[392719614,1761856240746,-3950.0,0.0002,2]
[392719615,1761856240756,-15991.15944164,0.0002,14]
[392719616,1761856240765,-7217.77537746,0.0002,2]
[392719617,1761856240774,-412.31850645,0.0002,2]
[392719618,1761856240784,-1034.67094114,0.0002,2]
[392719619,1761856240793,-8722.00493262,0.0002,2]
[392719620,1761856240803,-151.0,0.0002,7]
[392719621,1761856240812,-151.0,0.0002,7]
[392719622,1761856240821,-195.181761,0.0002,7]
[392719623,1761856240831,-211.605235,0.0002,7]
[392719624,1761856240840,-151.0,0.0002,7]
[392719625,1761856240850,-151.0,0.0002,7]
[392719626,1761856240859,-151.0,0.0002,7]
[392719627,1761856240868,-607.0,0.00020024,2]
[392719628,1761856240878,-1557.08305774,0.00020063,2]
[392719629,1761856240887,-416.41,0.00020187,2]
[392719630,1761856240896,-3464.59846861,0.00021,2]
[392719631,1761856240907,-1152.0,0.0002152,2]
[392719632,1761856240915,-160.97,0.00022,2]
[392719633,1761856240924,-163.65983096,0.00022361,2]
[392719634,1761856240933,-3270.89620383,0.00022427,2]
[392719635,1761856240943,-1557.08305774,0.00022494,2]
[392719636,1761856240952,-21917.65335482,0.000225,2]
[392719637,1761856240960,-209.650987,0.000225,7]
[392719638,1761856240970,-151.0,0.000225,7]
[392719639,1761856240979,-151.0,0.000225,7]
[392719640,1761856240988,-151.0,0.000225,7]
[392719641,1761856240998,-151.0,0.000225,7]
[392719642,1761856241007,-1613.0,0.00023552,2]
[392719643,1761856241016,-1009.58551906,0.00024,2]
[392719644,1761856241025,-150.0,0.00024524,2]
[392719645,1761856241035,-150.0,0.00024661,2]
[392719646,1761856241044,-152.00852264,0.0002479,2]
[392719647,1761856241054,-151.31,0.0002479,2]
[392719648,1761856241063,-151.31,0.0002479,2]
[392719649,1761856241073,-151.31,0.0002479,2]
[392719650,1761856241084,-151.31,0.0002479,2]
[392719651,1761856241093,-404477.590647,0.000248,3]
[392719652,1761856241103,-151.0,0.000248,7]
[392719653,1761856241112,-151.0,0.000248,7]
[392719654,1761856241122,-3270.89620383,0.0002487,2]
[392719655,1761856241134,-166.29553644,0.00024873,2]
[392719656,1761856241143,-504.584835,0.00024873,2]
[392719657,1761856241155,-299.92454015,0.00024873,2]
[392719658,1761856241165,-500.0,0.00024873,2]
[392719659,1761856241175,-500.0,0.00024873,2]
[392719660,1761856241184,-509.31937813,0.00024873,2]
[392719661,1761856241194,-160.45091984,0.00024873,2]
[392719662,1761856241204,-500.0,0.00024873,2]
[392719663,1761856241213,-500.0,0.00024873,2]
[392719664,1761856241222,-500.0,0.00024873,2]
[392719665,1761856241232,-218.24552039,0.00024873,2]
[392719666,1761856241243,-511.81722946,0.00024873,2]
[392719667,1761856241252,-500.0,0.00024873,2]
[392719668,1761856241261,-500.0,0.00024873,2]
[392719669,1761856241270,-157.97237589,0.00024873,2]
[392719670,1761856241279,-500.0,0.00024873,2]
[392719671,1761856241289,-200.0,0.00024873,2]
[392719672,1761856241298,-525.40643117,0.00024873,2]
[392719673,1761856241317,-505.48410443,0.00024873,2]
[392719674,1761856241326,-500.0,0.00024873,2]
[392719675,1761856241335,-500.0,0.00024873,2]
[392719676,1761856241345,-151.31,0.0002488,2]
[392719677,1761856241354,-44941.9545164,0.0002489,3]
[392719678,1761856241364,-151.31,0.0002489,2]
[392719679,1761856241373,-151.31,0.0002489,2]
[392719680,1761856241384,-151.31,0.0002489,2]
[392719681,1761856241393,-151.31,0.0002489,2]
[392719682,1761856241403,-92534.30765215,0.000249,2]
[392719683,1761856241412,-64244.33694821,0.000249,3]
[392719700,1761856243184,-639.77400001,0.000249,3]
[392719703,1761856243196,-671.8963044,0.000249,3]
[392719705,1761856243208,-11997.40331288,0.000249,3]
[392719706,1761856243407,-699.3981627,0.000249,3]
[392719721,1761856246263,-21223.5567265,0.000249,3]
[392719722,1761856246374,-427.87768,0.000249,3]
[392719723,1761856246386,-1169.32501742,0.000249,3]
[392719738,1761856839699,279.3399917,0.00031507,120]
[392719740,1761857357103,-500.0,0.000165,2]
[392719741,1761857357124,-189.06781646,0.00016606,2]
[392719754,1761857432326,-152.71,0.00016712,2]
[392719755,1761857432336,-160.0,0.00016995,2]
[392719756,1761857432346,-250.0,0.00017,2]
[392719757,1761857432355,-82.1077091,0.00017596,2]
[392719758,1761857432366,-391.23788634,0.00017596,2]
[392719759,1761857432376,-151.0,0.00019178,2]
[392719760,1761857432385,-156.587,0.00019726,2]
[392719761,1761857432395,-162.380719,0.00020274,2]
[392719762,1761857432404,-168.3888056,0.00020822,2]
[392719763,1761857432414,-174.61919141,0.0002137,2]
[392719764,1761857432423,-181.08010149,0.00021918,2]
[392719765,1761857432432,-2321.13,0.00022464,2]
[392719766,1761857432442,-187.78006525,0.00022466,2]
[392719767,1761857432452,-1200.0,0.00022848,2]
[392719768,1761857432462,-300.0,0.00022849,2]
[392719769,1761857432471,-1543.87408259,0.0002285,2]